Vendor Name - transparency,Expenditure Category,Transaction Number,Clearing Date, Net Amount 
HOCHTIEF MURPHY JV ,DIRECT CONSTRUCTION COSTS,5100011468,11/08/2011," 5,526,121.54 "
BECHTEL LIMITED,CROSSRAIL CENTRAL (PROJECT DELIVERY PARTNER),5100011472,17/08/2011," 4,977,026.82 "
BECHTEL LIMITED,CROSSRAIL CENTRAL (PROJECT DELIVERY PARTNER),5100010838,28/07/2011," 4,800,235.63 "
LONDON UNDERGROUND LIMITED,DIRECT CONSTRUCTION COSTS,5100011370,17/08/2011," 4,504,736.00 "
BALFOUR BEATTY MORGAN SINDALL VINCI JV,DIRECT CONSTRUCTION COSTS,5100011311,11/08/2011," 3,861,736.14 "
CANARY WHARF PROPERTIES (CROSSRAIL) LTD,DIRECT CONSTRUCTION COSTS,5100010847,28/07/2011," 3,251,660.57 "
CARILLION CONSTRUCTION ,DIRECT CONSTRUCTION COSTS,5100010948,25/07/2011," 3,024,502.12 "
DRAGADOS JOHN SISK JV,DIRECT CONSTRUCTION COSTS,5100011342,11/08/2011," 2,978,347.14 "
ROYAL SOCIETY FOR THE PROTECTION OF,DIRECT CONSTRUCTION COSTS,5100010601,11/08/2011," 1,800,000.00 "
BAM FERROVIAL KIER JV,DIRECT CONSTRUCTION COSTS,5100011167,04/08/2011," 1,796,693.28 "
CARILLION CONSTRUCTION ,DIRECT CONSTRUCTION COSTS,5100011366,11/08/2011," 1,782,959.35 "
WSP UK LIMITED,DIRECT CONSTRUCTION COSTS,5100011119,11/08/2011," 1,394,236.55 "
COSTAIN SKANSKA JV CRL ,DIRECT CONSTRUCTION COSTS,5100011290,11/08/2011," 1,330,306.04 "
LONDON UNDERGROUND LIMITED,DIRECT CONSTRUCTION COSTS,5100011239,04/08/2011," 1,275,314.54 "
BAM NUTTALL LIMITED,DIRECT CONSTRUCTION COSTS,5100011420,11/08/2011," 1,256,211.48 "
OVE ARUP & PARTNERS LIMITED,DIRECT CONSTRUCTION COSTS,5100011085,11/08/2011," 1,220,146.67 "
TRANSCEND PARTNERS LIMITED,PROGRAMME PARTNER,5100011419,11/08/2011," 1,042,092.13 "
TRANSCEND PARTNERS LIMITED,PROGRAMME PARTNER,5100010815,28/07/2011," 953,879.61 "
LAFARGE CEMENT UK PLC,DIRECT CONSTRUCTION COSTS,5100010478,04/08/2011," 908,803.00 "
TFL GROUP PROPERTY & FACILITIES,LUL/DLR/RFL/GPF COSTS,5100005182,28/07/2011," 847,497.23 "
KIER CONSTRUCTION LIMITED,DIRECT CONSTRUCTION COSTS,5100011168,17/08/2011," 803,507.86 "
MOTT MACDONALD LIMITED,DIRECT CONSTRUCTION COSTS,5100010794,28/07/2011," 780,489.20 "
BENTLEY SYSTEMS (UK) LIMITED,IT SERVICES,5100010423,29/07/2011," 774,959.56 "
THAMES WATER COMMERCIAL,DIRECT CONSTRUCTION COSTS,5100010998,28/07/2011," 743,468.00 "
NETWORK RAIL INFRASTRUCTURE LIMITED,DIRECT CONSTRUCTION COSTS,5100011179,11/08/2011," 694,329.49 "
DELOITTE MCS LIMITED,IT CONSULTANCY,5100011193,11/08/2011," 682,084.01 "
MOTT MACDONALD LIMITED,DIRECT CONSTRUCTION COSTS,5100010957,28/07/2011," 556,909.54 "
THAMES WATER COMMERCIAL,DIRECT CONSTRUCTION COSTS,5100011639,17/08/2011," 551,721.00 "
FUJITSU SERVICES LIMITED,IT CONSULTANCY,5100011133,11/08/2011," 548,999.60 "
ROYAL SOCIETY FOR THE PROTECTION OF,DIRECT CONSTRUCTION COSTS,5100011356,17/08/2011," 535,000.00 "
JACOBS ENGINEERING UK LIMITED,DIRECT CONSTRUCTION COSTS,5100011216,11/08/2011," 534,768.52 "
MCGEE GROUP LIMITED,DIRECT CONSTRUCTION COSTS,5100010017,10/08/2011," 531,721.09 "
MCGEE GROUP LIMITED,DIRECT CONSTRUCTION COSTS,5100011497,11/08/2011," 531,721.09 "
MOTT MACDONALD LIMITED,MANAGEMENT & SUPPORT CONSULTANCY,5100010476,04/08/2011," 488,942.34 "
THAMES WATER COMMERCIAL,DIRECT CONSTRUCTION COSTS,5100010923,28/07/2011," 483,711.00 "
NETWORK RAIL INFRASTRUCTURE LIMITED,DIRECT CONSTRUCTION COSTS,5100010737,04/08/2011," 463,452.53 "
THAMES WATER COMMERCIAL,DIRECT CONSTRUCTION COSTS,5100011640,17/08/2011," 433,425.00 "
TRANSCEND PARTNERS LIMITED,PROGRAMME PARTNER,5100010814,28/07/2011," 428,726.00 "
ITMSOIL SERVICES,DIRECT CONSTRUCTION COSTS,5100011425,17/08/2011," 418,956.73 "
THAMES WATER COMMERCIAL,DIRECT CONSTRUCTION COSTS,5100011638,17/08/2011," 413,923.00 "
NETWORK RAIL INFRASTRUCTURE LIMITED,DIRECT CONSTRUCTION COSTS,5100011349,11/08/2011," 404,689.33 "
FUJITSU SERVICES LIMITED,IT SERVICES,5100010981,04/08/2011," 390,789.00 "
ASHURST LLP,PROPERTY AND COMPENSATION PAYMENTS,100008961,19/08/2011," 371,488.37 "
HYDER CONSULTING (UK) LIMITED,DIRECT CONSTRUCTION COSTS,5100011162,11/08/2011," 358,020.57 "
MCGEE GROUP LIMITED,DIRECT CONSTRUCTION COSTS,5100011347,11/08/2011," 340,288.10 "
JOHN F HUNT DEMOLITION LIMITED,DIRECT CONSTRUCTION COSTS,5100011416,17/08/2011," 338,094.12 "
J MURPHY & SONS LIMITED,DIRECT CONSTRUCTION COSTS,5100011506,11/08/2011," 334,556.23 "
OVE ARUP & PARTNERS LIMITED,DIRECT CONSTRUCTION COSTS,5100010903,28/07/2011," 329,752.73 "
PROPERTY COMPENSATION,PROPERTY AND COMPENSATION PAYMENTS,100007143,19/08/2011," 321,516.54 "
SCOTT WILSON LIMITED,DIRECT CONSTRUCTION COSTS,5100011023,04/08/2011," 304,846.72 "
VINCI CONSTRUCTION UK LTD (C503PBA),DIRECT CONSTRUCTION COSTS,5100010821,28/07/2011," 273,136.34 "
COSTAIN SKANSKA JV,DIRECT CONSTRUCTION COSTS,5100010947,28/07/2011," 266,567.41 "
INSTANT OFFICES MANAGED LLP,DIRECT CONSTRUCTION COSTS,5100011084,04/08/2011," 250,280.44 "
NETWORK RAIL INFRASTRUCTURE LIMITED,DIRECT CONSTRUCTION COSTS,5100011178,11/08/2011," 231,012.72 "
J MURPHY & SONS LIMITED,DIRECT CONSTRUCTION COSTS,5100011505,11/08/2011," 223,010.70 "
MOTT MACDONALD LIMITED,DIRECT CONSTRUCTION COSTS,5100010796,28/07/2011," 222,926.62 "
MOTT MACDONALD LIMITED,DIRECT CONSTRUCTION COSTS,5100011094,04/08/2011," 212,411.49 "
MCNICHOLAS CONSTRUCTION SERVICES LI,DIRECT CONSTRUCTION COSTS,5100010959,28/07/2011," 208,423.48 "
CAPITA SYMONDS LIMITED,DIRECT CONSTRUCTION COSTS,5100011158,11/08/2011," 195,780.14 "
NETWORK RAIL INFRASTRUCTURE LIMITED,DIRECT CONSTRUCTION COSTS,5100011402,11/08/2011," 193,964.13 "
CANARY WHARF PROPERTIES (CROSSRAIL) LTD,DIRECT CONSTRUCTION COSTS,5100010976,04/08/2011," 186,465.00 "
FUGRO ENGINEERING SERVICES LIMITED,DIRECT CONSTRUCTION COSTS,5100011289,17/08/2011," 182,162.87 "
BALFOUR BEATTY CIVIL ENGINEERING LI,DIRECT CONSTRUCTION COSTS,5100010924,28/07/2011," 175,240.02 "
PROPERTY COMPENSATION,PROPERTY AND COMPENSATION PAYMENTS,100007084,29/07/2011," 171,846.44 "
MORGAN EST PLC,DIRECT CONSTRUCTION COSTS,5100011433,17/08/2011," 166,678.51 "
MOTT MACDONALD LIMITED,DIRECT CONSTRUCTION COSTS,5100011421,17/08/2011," 163,272.35 "
EVERSHEDS LLP ,PROPERTY AND COMPENSATION PAYMENTS,100007083,29/07/2011," 151,765.32 "
BENTLEY SYSTEMS (UK) LIMITED,IT SERVICES,5100011073,28/07/2011," 150,000.00 "
SOIL MECHANICS,DIRECT CONSTRUCTION COSTS,5100011131,11/08/2011," 148,325.15 "
VOLKERFITZPATRICK LIMITED,DIRECT CONSTRUCTION COSTS,5100011351,11/08/2011," 141,577.33 "
J B RINEY & COMPANY LIMITED,DIRECT CONSTRUCTION COSTS,5100011034,04/08/2011," 135,598.54 "
CRIPPS HARRIES HALL LLP ,PROPERTY AND COMPENSATION PAYMENTS,100007129,12/08/2011," 133,350.69 "
THE CROUCH HARBOUR AUTHORITY,DIRECT CONSTRUCTION COSTS,5100010972,28/07/2011," 124,888.00 "
RAIL FOR LONDON LIMITED,LUL/DLR/RFL/GPF COSTS,5100010963,28/07/2011," 122,972.13 "
NETWORK RAIL INFRASTRUCTURE LIMITED,DIRECT CONSTRUCTION COSTS,5100011177,11/08/2011," 117,707.36 "
CARILLION CONSTRUCTION LTD,DIRECT CONSTRUCTION COSTS,5100011123,04/08/2011," 114,490.55 "
ASHURST LLP,PROPERTY AND COMPENSATION PAYMENTS,100008960,19/08/2011," 112,268.62 "
MUSEUM OF LONDON ARCHAEOLOGY SERVIC,DIRECT CONSTRUCTION COSTS,5100011515,17/08/2011," 111,254.64 "
SUPPORTA TERRAQUEST SOLUTIONS LTD,LAND REFERENCING SERVICES,5100010670,11/08/2011," 109,196.42 "
DOCKLANDS LIGHT RAILWAY LIMITED,LUL/DLR/RFL/GPF COSTS,5100011263,04/08/2011," 105,824.64 "
PRICEWATERHOUSE COOPERS LLP,MANAGEMENT & SUPPORT CONSULTANCY,5100011308,17/08/2011," 100,000.00 "
SUPPORTA TERRAQUEST SOLUTIONS LTD,LAND REFERENCING SERVICES,5100011018,26/07/2011," 97,599.52 "
CARILLION CONSTRUCTION LTD,DIRECT CONSTRUCTION COSTS,5100011129,04/08/2011," 94,791.38 "
THAMES WATER COMMERCIAL,DIRECT CONSTRUCTION COSTS,5100011297,04/08/2011," 93,915.02 "
FUJITSU SERVICES LIMITED,IT SERVICES,5100010892,04/08/2011," 86,085.00 "
THAMES WATER COMMERCIAL,DIRECT CONSTRUCTION COSTS,5100011641,17/08/2011," 82,864.00 "
MCGEE GROUP LIMITED,DIRECT CONSTRUCTION COSTS,5100011165,04/08/2011," 82,482.81 "
CARILLION CONSTRUCTION LTD,DIRECT CONSTRUCTION COSTS,5100011293,11/08/2011," 81,631.84 "
SOIL MECHANICS,DIRECT CONSTRUCTION COSTS,5100011031,28/07/2011," 78,824.73 "
J B RINEY & COMPANY LIMITED,DIRECT CONSTRUCTION COSTS,5100011557,17/08/2011," 77,043.43 "
J MURPHY & SONS LIMITED,DIRECT CONSTRUCTION COSTS,5100011434,17/08/2011," 70,151.58 "
FUJITSU SERVICES LIMITED,IT SERVICES,5100011110,11/08/2011," 68,971.00 "
FUJITSU SERVICES LIMITED,IT SERVICES,5100010951,04/08/2011," 66,269.23 "
PROPERTY COMPENSATION,PROPERTY AND COMPENSATION PAYMENTS,100007107,29/07/2011," 65,808.64 "
HYDER CONSULTING (UK) LIMITED,DIRECT CONSTRUCTION COSTS,5100011210,11/08/2011," 65,239.84 "
NETWORK RAIL INFRASTRUCTURE LIMITED,DIRECT CONSTRUCTION COSTS,5100011181,04/08/2011," 65,174.72 "
GLEEDS UK PARTNERSHIP,DIRECT CONSTRUCTION COSTS,5100011559,17/08/2011," 64,840.00 "
FUJITSU SERVICES LIMITED,IT SERVICES,5100010977,04/08/2011," 64,336.00 "
FUJITSU SERVICES LIMITED,IT SERVICES,5100010949,04/08/2011," 63,127.00 "
J B RINEY & COMPANY LIMITED,DIRECT CONSTRUCTION COSTS,5100011036,04/08/2011," 62,841.16 "
BRAVO SOLUTION UK LIMITED,IT SERVICES,5100010867,04/08/2011," 61,666.67 "
ASHURST,LEGAL FEES,5100011321,11/08/2011," 61,244.50 "
CRAWFORD & COMPANY,GENERAL INSURANCE,5100011355,17/08/2011," 50,000.00 "
CUNNINGHAM LINDSEY,GENERAL INSURANCE,5100011357,11/08/2011," 50,000.00 "
J B RINEY & COMPANY LIMITED,DIRECT CONSTRUCTION COSTS,5100011032,04/08/2011," 49,665.43 "
PROPERTY COMPENSATION,PROPERTY AND COMPENSATION PAYMENTS,100008923,19/08/2011," 49,053.30 "
FUJITSU SERVICES LIMITED,IT SERVICES,5100011115,11/08/2011," 48,414.00 "
MACE SUSTAIN LIMITED,MANAGEMENT & SUPPORT CONSULTANCY,5100010334,17/08/2011," 45,000.00 "
VINCI CONSTRUCTION UK LTD,DIRECT CONSTRUCTION COSTS,5100011148,04/08/2011," 43,603.09 "
SOIL MECHANICS,DIRECT CONSTRUCTION COSTS,5100011410,17/08/2011," 42,328.52 "
PROPERTY COMPENSATION,PROPERTY AND COMPENSATION PAYMENTS,100007108,29/07/2011," 42,016.23 "
FUJITSU SERVICES LIMITED,IT SERVICES,5100010887,04/08/2011," 41,384.00 "
FUJITSU SERVICES LIMITED,IT SERVICES,5100011111,11/08/2011," 41,232.00 "
MOUCHEL LIMITED,LAND REFERENCING SERVICES,5100011270,11/08/2011," 39,939.90 "
FUJITSU SERVICES LIMITED,IT SERVICES,5100010950,04/08/2011," 38,664.00 "
FUJITSU SERVICES LIMITED,IT SERVICES,5100010900,04/08/2011," 37,582.00 "
FUJITSU SERVICES LIMITED,IT SERVICES,5100010952,04/08/2011," 37,192.55 "
SELECT PLANT HIRE COMPANY LIMITED,DIRECT CONSTRUCTION COSTS,5100010877,11/08/2011," 36,662.00 "
ROWSELL WRIGHT LIMITED,PROCUREMENT ADVICE & GUIDANCE,5100011469,09/08/2011," 35,025.87 "
SCOTT WILSON LIMITED,DIRECT CONSTRUCTION COSTS,5100010873,11/08/2011," 32,012.82 "
ROWSELL WRIGHT LIMITED,PROCUREMENT ADVICE & GUIDANCE,5100011307,17/08/2011," 31,431.00 "
J MURPHY & SONS LIMITED,DIRECT CONSTRUCTION COSTS,5100011296,10/08/2011," 30,290.68 "
SELECT PLANT HIRE COMPANY LIMITED,DIRECT CONSTRUCTION COSTS,5100010833,28/07/2011," 29,082.83 "
QINETIQ COMMERCE DECISIONS LIMITED,PROCUREMENT ADVICE & GUIDANCE,5100010681,04/08/2011," 28,530.00 "
QINETIQ COMMERCE DECISIONS LIMITED,PROCUREMENT ADVICE & GUIDANCE,5100011192,11/08/2011," 28,530.00 "
RPS CONSULTANTS LIMITED,DIRECT CONSTRUCTION COSTS,5100010955,28/07/2011," 28,230.00 "
KELVIN TOP-SET,HEALTH & SAFETY SYSTEMS & ASSURANCE,5100011267,11/08/2011," 27,300.00 "
NETWORK RAIL INFRASTRUCTURE LIMITED,DIRECT CONSTRUCTION COSTS,5100010995,04/08/2011," 27,214.87 "
SUPPORTA TERRAQUEST SOLUTIONS LTD,PROPERTY INFORMATION MANAGEMENT SERVICES,5100010809,28/07/2011," 26,420.07 "
FUJITSU SERVICES LIMITED,IT SERVICES,5100010890,04/08/2011," 26,038.00 "
SOIL MECHANICS,DIRECT CONSTRUCTION COSTS,5100011409,17/08/2011," 25,832.00 "
DUNDAS AND WILSON LLP ,PROPERTY AND COMPENSATION PAYMENTS,100007110,29/07/2011," 25,535.00 "
FUJITSU SERVICES LIMITED,IT SERVICES,5100011106,11/08/2011," 25,324.00 "
ASHURST LLP,PROPERTY AND COMPENSATION PAYMENTS,100007120,12/08/2011," 25,000.00 "
ADVANTAGE PROFESSIONAL UK LIMITED,AGENCY STAFF,5100011380,11/08/2011," 24,812.20 "
MWR ASSOCIATES LIMITED,ASSURANCE & STANDARDS,5100011487,17/08/2011," 24,359.75 "
FUTERRA SUSTAINABILITY,CONSENTS & ENVIRONMENT,5100010528,17/08/2011," 24,180.00 "
MEERES CIVIL ENGINEERING LIMITED,DIRECT CONSTRUCTION COSTS,5100010450,28/07/2011," 23,774.00 "
UK POWER NETWORKS (OPERATIONS) LTD,DIRECT CONSTRUCTION COSTS,5100011174,04/08/2011," 22,789.91 "
ADVANTAGE PROFESSIONAL UK LIMITED,AGENCY STAFF,5100011391,11/08/2011," 22,596.00 "
CIB PROPERTIES LIMITED,FACILITIES,5100011025,28/07/2011," 22,173.69 "
CIB PROPERTIES LIMITED,FACILITIES,5100011594,17/08/2011," 22,173.69 "
GEOTECHNICAL CONSULTING LLP,ASSURANCE & STANDARDS,5100011331,17/08/2011," 21,587.77 "
NETWORK RAIL INFRASTRUCTURE LIMITED,DIRECT CONSTRUCTION COSTS,5100011362,11/08/2011," 21,571.59 "
ASHURST,EXTERNAL PROCUREMENT,5100011320,11/08/2011," 21,443.50 "
STEELHENGE CONSULTING LIMITED,HEALTH & SAFETY SYSTEMS & ASSURANCE,5100011268,11/08/2011," 21,004.00 "
FUJITSU SERVICES LIMITED,IT SERVICES,5100011112,11/08/2011," 20,998.00 "
NETWORK RAIL INFRASTRUCTURE LIMITED,DIRECT CONSTRUCTION COSTS,5100011403,11/08/2011," 20,585.58 "
EVERSHEDS LLP ,PROPERTY AND COMPENSATION PAYMENTS,100008962,19/08/2011," 20,491.25 "
BECHTEL LIMITED,CROSSRAIL CENTRAL (PROJECT DELIVERY PARTNER),5100011120,11/08/2011," 20,000.00 "
CAPITA SYMONDS LIMITED,DIRECT CONSTRUCTION COSTS,5100010225,28/07/2011," 19,766.15 "
FUJITSU SERVICES LIMITED,IT SERVICES,5100011102,11/08/2011," 19,425.00 "
MUSEUM OF LONDON ARCHAEOLOGY SERVIC,DIRECT CONSTRUCTION COSTS,5100011514,17/08/2011," 18,389.00 "
FUJITSU SERVICES LIMITED,IT SERVICES,5100011117,11/08/2011," 17,869.00 "
ADVANTAGE PROFESSIONAL UK LIMITED,AGENCY STAFF,5100011390,11/08/2011," 17,824.00 "
NETWORK RAIL INFRASTRUCTURE LIMITED,RELIABILITY & TIMETABLE MONITORING,5100010996,04/08/2011," 17,819.44 "
NETWORK RAIL INFRASTRUCTURE LIMITED,DIRECT CONSTRUCTION COSTS,5100011180,11/08/2011," 16,890.40 "
FUJITSU SERVICES LIMITED,IT SERVICES,5100010979,04/08/2011," 16,720.00 "
FUJITSU SERVICES LIMITED,IT SERVICES,5100011104,11/08/2011," 16,515.75 "
ADVANTAGE PROFESSIONAL UK LIMITED,AGENCY STAFF,5100011386,11/08/2011," 16,438.25 "
CAPITA SYMONDS LIMITED,DIRECT CONSTRUCTION COSTS,5100011020,04/08/2011," 16,380.98 "
FUJITSU SERVICES LIMITED,IT SERVICES,5100010983,04/08/2011," 15,488.00 "
UNIVERSITY OF EAST LONDON,DIRECT CONSTRUCTION COSTS,5100011200,04/08/2011," 15,380.00 "
FUJITSU SERVICES LIMITED,IT SERVICES,5100011118,11/08/2011," 14,461.00 "
DEEPSTORE LIMITED,COMMERCIAL PROPERTY RENT,5100011516,17/08/2011," 14,392.78 "
ADVANTAGE PROFESSIONAL UK LIMITED,AGENCY STAFF,5100010639,04/08/2011," 14,216.72 "
ARUP ASSOCIATES,AGENCY STAFF,5100010868,04/08/2011," 14,167.00 "
BAM NUTTALL LIMITED,BUILDING MAINTENANCE & REPAIRS,5100010879,28/07/2011," 14,095.70 "
NETWORK RAIL INFRASTRUCTURE LIMITED,DIRECT CONSTRUCTION COSTS,5100011361,11/08/2011," 13,927.14 "
MOTT MACDONALD LIMITED,DIRECT CONSTRUCTION COSTS,5100011194,11/08/2011," 13,554.38 "
ASHURST,EXTERNAL PROCUREMENT,5100010024,28/07/2011," 13,475.50 "
ARUP ASSOCIATES,AGENCY STAFF,5100011041,27/07/2011," 13,268.00 "
SKILLSOFT UK LIMITED,STAFF TRAINING,5100011021,11/08/2011," 13,176.99 "
FUJITSU SERVICES LIMITED,IT SERVICES,5100010984,04/08/2011," 13,169.77 "
GLEEDS UK PARTNERSHIP,DIRECT CONSTRUCTION COSTS,5100011159,04/08/2011," 13,149.00 "
ADVANTAGE PROFESSIONAL UK LIMITED,AGENCY STAFF,5100011388,11/08/2011," 13,029.50 "
CIB PROPERTIES LIMITED,PROPERTY EXPENSES,5100011024,28/07/2011," 13,019.39 "
ICE - INSTITUTION OF CIVIL ENGINEERS,MANAGEMENT & SUPPORT CONSULTANCY,5100011078,28/07/2011," 12,618.40 "
SOIL MECHANICS,DIRECT CONSTRUCTION COSTS,5100011030,28/07/2011," 12,523.85 "
EVERSHEDS LLP,LEGAL FEES,5100011246,04/08/2011," 12,219.50 "
ADVANTAGE PROFESSIONAL UK LIMITED,AGENCY STAFF,5100011384,11/08/2011," 12,194.67 "
J B RINEY & COMPANY LIMITED,DIRECT CONSTRUCTION COSTS,5100010212,04/08/2011," 12,167.33 "
THE NICHOLS GROUP LIMITED,AGENCY STAFF,5100011284,11/08/2011," 12,160.00 "
FUJITSU SERVICES LIMITED,IT SERVICES,5100010985,04/08/2011," 11,940.20 "
ADVANTAGE PROFESSIONAL UK LIMITED,AGENCY STAFF,5100011385,11/08/2011," 11,921.00 "
FUJITSU SERVICES LIMITED,IT SERVICES,5100011114,11/08/2011," 11,842.00 "
ADVANTAGE PROFESSIONAL UK LIMITED,AGENCY STAFF,5100011382,11/08/2011," 11,587.50 "
FUJITSU SERVICES LIMITED,IT SERVICES,5100010899,04/08/2011," 11,586.00 "
WELLBEING4BUSINESS,HEALTH & SAFETY GENERAL,5100011417,17/08/2011," 11,491.40 "
ASHURST,LEGAL FEES,5100011203,04/08/2011," 11,480.50 "
THE NICHOLS GROUP LIMITED,AGENCY STAFF,5100010076,04/08/2011," 11,400.00 "
ADVANTAGE PROFESSIONAL UK LIMITED,AGENCY STAFF,5100011393,11/08/2011," 11,124.00 "
FUJITSU SERVICES LIMITED,IT SERVICES,5100010901,04/08/2011," 11,100.00 "
RGB INTEGRATED SERVICES LIMITED,DIRECT CONSTRUCTION COSTS,5100011491,17/08/2011," 10,825.67 "
EUROPEAN TUNNELLING SERVICES LIMITE,PROFESSIONAL ENGINEERING SERVICES,5100011265,17/08/2011," 10,800.00 "
URBAN INITIATIVES LTD.,URBAN REALM DESIGN,5100011495,17/08/2011," 10,598.00 "
ICE - INSTITUTION OF CIVIL ENGINEERS,MANAGEMENT & SUPPORT CONSULTANCY,5100010536,28/07/2011," 10,587.28 "
ASHURST,LEGAL FEES,5100011196,04/08/2011," 10,327.24 "
FUJITSU SERVICES LIMITED,IT SERVICES,5100011103,11/08/2011," 10,286.25 "
ADVANTAGE PROFESSIONAL UK LIMITED,AGENCY STAFF,5100011387,11/08/2011," 10,011.60 "
ADVANTAGE PROFESSIONAL UK LIMITED,AGENCY STAFF,5100011389,11/08/2011," 9,888.00 "
HEATH LAMBERT GROUP LIMITED,BROKERS FEES,5100011005,28/07/2011," 9,808.00 "
FUJITSU SERVICES LIMITED,IT SERVICES,5100010895,04/08/2011," 9,762.10 "
WARNER LAND SURVEYS LIMITED,BASELINE MONITORING,5100011170,04/08/2011," 9,500.00 "
WARNER LAND SURVEYS LIMITED,DIRECT CONSTRUCTION COSTS,5100011169,11/08/2011," 9,500.00 "
MOTT MACDONALD LIMITED,PROJECT DESIGN SERVICES,5100011358,11/08/2011," 9,486.55 "
GEOTECHNICAL CONSULTING LLP,ASSURANCE & STANDARDS,5100011332,17/08/2011," 9,466.28 "
AECOM LIMITED,LAND REFERENCING SERVICES,5100011556,17/08/2011," 9,342.20 "
ADVANTAGE PROFESSIONAL UK LIMITED,AGENCY STAFF,5100011392,11/08/2011," 9,270.00 "
ASHURST,LEGAL FEES,5100011205,04/08/2011," 9,248.00 "
ADVANTAGE TECHNICAL RESOURCING,AGENCY STAFF,5100010965,04/08/2011," 9,187.50 "
THE NICHOLS GROUP LIMITED,AGENCY STAFF,5100011281,11/08/2011," 9,120.00 "
THE NICHOLS GROUP LIMITED,AGENCY STAFF,5100011282,11/08/2011," 9,120.00 "
SURVEY ASSOCIATES LTD.,DIRECT CONSTRUCTION COSTS,5100009579,28/07/2011," 9,084.38 "
SCOTT WILSON LIMITED,ASSURANCE & STANDARDS,5100010960,28/07/2011," 8,920.00 "
PROPERTY COMPENSATION,PROPERTY AND COMPENSATION PAYMENTS,100008922,19/08/2011," 8,658.30 "
ASSET MANAGEMENT CONSULTING,BASELINE MONITORING,5100011558,17/08/2011," 8,633.00 "
GEOTECHNICAL CONSULTING LLP,PROFESSIONAL ENGINEERING SERVICES,5100011337,17/08/2011," 8,577.55 "
PROPERTY COMPENSATION,PROPERTY AND COMPENSATION PAYMENTS,100007109,29/07/2011," 8,455.81 "
GOODMAN MASSON RECRUITMENT SERVICES,AGENCY STAFF,5100011042,27/07/2011," 8,386.00 "
FUJITSU SERVICES LIMITED,IT SERVICES,5100010897,04/08/2011," 8,360.00 "
FRONTIERE PR LIMITED,ART PROGRAMME,5100011248,04/08/2011," 8,123.70 "
ADVANTAGE PROFESSIONAL UK LIMITED,AGENCY STAFF,5100011381,11/08/2011," 7,981.00 "
CIB PROPERTIES LIMITED,ELECTRICITY,5100011592,17/08/2011," 7,894.12 "
CIB PROPERTIES LIMITED,ELECTRICITY,5100011591,17/08/2011," 7,884.13 "
CIB PROPERTIES LIMITED,ELECTRICITY,5100011595,17/08/2011," 7,881.70 "
AKS WARD CONSTRUCTION CONSULTANTS,DIRECT CONSTRUCTION COSTS,5100011154,04/08/2011," 7,875.00 "
FUJITSU SERVICES LIMITED,IT SERVICES,5100010896,04/08/2011," 7,869.00 "
FUJITSU SERVICES LIMITED,IT SERVICES,5100011101,11/08/2011," 7,869.00 "
ADVANTAGE PROFESSIONAL UK LIMITED,AGENCY STAFF,5100011379,11/08/2011," 7,832.16 "
CIB PROPERTIES LIMITED,ELECTRICITY,5100011028,28/07/2011," 7,817.46 "
CIB PROPERTIES LIMITED,ELECTRICITY,5100011027,28/07/2011," 7,807.56 "
CIB PROPERTIES LIMITED,ELECTRICITY,5100011029,28/07/2011," 7,805.16 "
CIB PROPERTIES LIMITED,ELECTRICITY,5100011593,17/08/2011," 7,658.91 "
ICE - INSTITUTION OF CIVIL ENGINEERS,MANAGEMENT & SUPPORT CONSULTANCY,5100011077,28/07/2011," 7,647.60 "
CIB PROPERTIES LIMITED,ELECTRICITY,5100011026,28/07/2011," 7,584.53 "
PLOWMAN CRAVEN LIMITED,BASELINE MONITORING,5100011173,04/08/2011," 7,495.00 "
OVE ARUP & PARTNERS LIMITED,CONSENTS & ENVIRONMENT,5100010806,28/07/2011," 7,423.16 "
FUJITSU SERVICES LIMITED,IT SERVICES,5100011113,11/08/2011," 7,380.00 "
J B RINEY & COMPANY LIMITED,DIRECT CONSTRUCTION COSTS,5100011037,04/08/2011," 7,351.43 "
ADVANTAGE PROFESSIONAL UK LIMITED,AGENCY STAFF,5100011394,11/08/2011," 7,284.00 "
MOUCHEL LIMITED,PROPERTY MANAGEMENT FEES,5100011299,04/08/2011," 7,140.00 "
WELLBEING4BUSINESS,HEALTH & SAFETY GENERAL,5100010973,04/08/2011," 7,080.80 "
MOTT MACDONALD LIMITED,DIRECT CONSTRUCTION COSTS,5100011360,17/08/2011," 7,041.39 "
AECOM LIMITED,DIRECT CONSTRUCTION COSTS,5100011172,04/08/2011," 7,008.39 "
BANNER BUSINESS SERVICES LIMITED,BUSINESS PROCEDURES AND SERVICES,5100011398,11/08/2011," 6,971.34 "
THAMES WATER COMMERCIAL,DIRECT CONSTRUCTION COSTS,5100010922,28/07/2011," 6,909.00 "
ADVANTAGE PROFESSIONAL UK LIMITED,AGENCY STAFF,5100011439,17/08/2011," 6,695.00 "
CIB PROPERTIES LIMITED,PROPERTY EXPENSES,5100011524,17/08/2011," 6,582.58 "
DUNN & BRADSTREET,MANAGEMENT & SUPPORT CONSULTANCY,5100011467,11/08/2011," 6,580.00 "
ADVANTAGE TECHNICAL RESOURCING,AGENCY STAFF,5100011171,04/08/2011," 6,562.50 "
BERWIN LEIGHTON PAISNER,LEGAL FEES,5100011368,11/08/2011," 6,552.50 "
BRE GLOBAL LIMTED,IT CONSULTANCY,5100011089,04/08/2011," 6,490.00 "
PALISADE-EUROPE UK LTD,IT SERVICES,5100010754,28/07/2011," 6,422.95 "
FUJITSU SERVICES LIMITED,IT SERVICES,5100010898,04/08/2011," 6,270.00 "
AKS WARD CONSTRUCTION CONSULTANTS,DIRECT CONSTRUCTION COSTS,5100011153,04/08/2011," 6,162.50 "
CAPITAL SURVEYS LIMITED,MANAGEMENT & SUPPORT CONSULTANCY,5100011080,04/08/2011," 6,090.00 "
TALENT STAFFING LIMITED,AGENCY STAFF,5100010862,04/08/2011," 6,035.00 "
TALENT STAFFING LIMITED,AGENCY STAFF,5100011068,04/08/2011," 6,035.00 "
WELLBEING4BUSINESS,HEALTH & SAFETY GENERAL,5100011155,04/08/2011," 6,029.40 "
ADVANTAGE TECHNICAL RESOURCING,AGENCY STAFF,5100011048,27/07/2011," 5,906.25 "
MANDATE HOGARTH & PENROSE,MANAGEMENT & SUPPORT CONSULTANCY,5100011371,11/08/2011," 5,900.00 "
SPRINGBOARD MARKETING LIMITED,"TELEPHONE LINE RENT, CALLS & EQUIPMENT",5100010128,17/08/2011," 5,784.82 "
GOODMAN MASSON RECRUITMENT SERVICES,RECRUITMENT AGENCY FEES,5100011305,11/08/2011," 5,780.00 "
URBAN WIMAX LIMITED,"TELEPHONE LINE RENT, CALLS & EQUIPMENT",5100010242,28/07/2011," 5,700.00 "
GARDINER & THEOBALD,DIRECT CONSTRUCTION COSTS,5100011303,17/08/2011," 5,650.00 "
NETWORK RAIL INFRASTRUCTURE LIMITED,RELIABILITY & TIMETABLE MONITORING,5100010997,11/08/2011," 5,609.43 "
DEEPSTORE LIMITED,COMMERCIAL PROPERTY RENT,5100011517,17/08/2011," 5,584.00 "
SURVEY ASSOCIATES LTD.,DIRECT CONSTRUCTION COSTS,5100010048,28/07/2011," 5,450.63 "
SURVEY ASSOCIATES LTD.,DIRECT CONSTRUCTION COSTS,5100011002,17/08/2011," 5,450.63 "
TALENT STAFFING LIMITED,AGENCY STAFF,5100011250,11/08/2011," 5,435.00 "
GEOTECHNICAL CONSULTING LLP,PROFESSIONAL ENGINEERING SERVICES,5100011335,17/08/2011," 5,433.28 "
BOND PEARCE LLP ,PROPERTY AND COMPENSATION PAYMENTS,100007130,12/08/2011," 5,242.25 "
FUJITSU SERVICES LIMITED,IT SERVICES,5100010980,04/08/2011," 5,225.00 "
OXFORD ARCHAEOLOGICAL UNIT LIMITED,DIRECT CONSTRUCTION COSTS,5100011525,17/08/2011," 5,014.00 "
J B RINEY & COMPANY LIMITED,DIRECT CONSTRUCTION COSTS,5100010843,28/07/2011," 4,987.50 "
GEOTECHNICAL CONSULTING LLP,PROFESSIONAL ENGINEERING SERVICES,5100011333,17/08/2011," 4,948.69 "
GEOTECHNICAL CONSULTING LLP,PROFESSIONAL ENGINEERING SERVICES,5100011329,17/08/2011," 4,929.17 "
BIRCHAM DYSON BELL LLP,LEGAL FEES,5100011374,11/08/2011," 4,900.00 "
SUBTECHNICS LIMITED,DIRECT CONSTRUCTION COSTS,5100011493,17/08/2011," 4,836.00 "
ASPERITY EMPLOYEE BENEFITS LIMITED,EMPLOYEE BENEFITS,5100011644,17/08/2011," 4,694.00 "
WELLBEING4BUSINESS,HEALTH & SAFETY GENERAL,5100011527,17/08/2011," 4,689.00 "
ICE - INSTITUTION OF CIVIL ENGINEERS,MANAGEMENT & SUPPORT CONSULTANCY,5100011075,28/07/2011," 4,630.27 "
WELLBEING4BUSINESS,HEALTH & SAFETY GENERAL,5100011156,04/08/2011," 4,540.40 "
TALENT STAFFING LIMITED,AGENCY STAFF,5100011060,04/08/2011," 4,535.00 "
TALENT STAFFING LIMITED,AGENCY STAFF,5100011352,11/08/2011," 4,535.00 "
OVE ARUP & PARTNERS LIMITED,CONSENTS & ENVIRONMENT,5100010805,28/07/2011," 4,528.80 "
AECOM LIMITED,LAND REFERENCING SERVICES,5100011553,17/08/2011," 4,446.75 "
ASHURST,LEGAL FEES,5100009853,28/07/2011," 4,372.00 "
GEOTECHNICAL CONSULTING LLP,PROFESSIONAL ENGINEERING SERVICES,5100011327,17/08/2011," 4,344.91 "
FUJITSU SERVICES LIMITED,IT SERVICES,5100010891,04/08/2011," 4,260.00 "
TALENT STAFFING LIMITED,AGENCY STAFF,5100011254,11/08/2011," 4,160.00 "
TALENT STAFFING LIMITED,AGENCY STAFF,5100011255,11/08/2011," 4,160.00 "
TALENT STAFFING LIMITED,AGENCY STAFF,5100011256,11/08/2011," 4,160.00 "
GEOTECHNICAL CONSULTING LLP,PROFESSIONAL ENGINEERING SERVICES,5100011338,17/08/2011," 4,065.11 "
ADVANTAGE PROFESSIONAL UK LIMITED,AGENCY STAFF,5100011395,11/08/2011," 3,941.04 "
ICE - INSTITUTION OF CIVIL ENGINEERS,MANAGEMENT & SUPPORT CONSULTANCY,5100010932,04/08/2011," 3,910.25 "
ANSTEY HORNE & CO LTD.,DIRECT CONSTRUCTION COSTS,5100011152,04/08/2011," 3,850.00 "
GEOTECHNICAL CONSULTING LLP,PROFESSIONAL ENGINEERING SERVICES,5100011339,17/08/2011," 3,849.28 "
ICE - INSTITUTION OF CIVIL ENGINEERS,MANAGEMENT & SUPPORT CONSULTANCY,5100010911,04/08/2011," 3,782.30 "
HAYS INFORMATION TECHNOLOGY,AGENCY STAFF,5100010958,04/08/2011," 3,705.00 "
HAYS INFORMATION TECHNOLOGY,AGENCY STAFF,5100011121,11/08/2011," 3,705.00 "
SPRINGBOARD MARKETING LIMITED,"TELEPHONE LINE RENT, CALLS & EQUIPMENT",5100011481,17/08/2011," 3,670.11 "
TALENT STAFFING LIMITED,AGENCY STAFF,5100011065,04/08/2011," 3,635.00 "
ASHURST,LEGAL FEES,5100011204,04/08/2011," 3,612.00 "
MANDATE HOGARTH & PENROSE,MANAGEMENT & SUPPORT CONSULTANCY,5100011022,04/08/2011," 3,600.00 "
FUJITSU SERVICES LIMITED,IT SERVICES,5100011108,11/08/2011," 3,571.80 "
BIRCHAM DYSON BELL LLP,LEGAL FEES,5100010004,11/08/2011," 3,534.50 "
GEOTECHNICAL CONSULTING LLP,PROFESSIONAL ENGINEERING SERVICES,5100011340,17/08/2011," 3,486.27 "
GVA GRIMLEY LIMITED,OSD TOWN PLANNING COSTS,5100010908,28/07/2011," 3,450.00 "
ADECCO UK LTD,RECRUITMENT AGENCY FEES,5100011132,11/08/2011," 3,360.00 "
AECOM LIMITED,DIRECT CONSTRUCTION COSTS,5100011306,11/08/2011," 3,318.09 "
ADVANTAGE PROFESSIONAL UK LIMITED,AGENCY STAFF,5100011438,17/08/2011," 3,300.88 "
MORSON INTERNATIONAL,AGENCY STAFF,5100010881,04/08/2011," 3,300.00 "
MORSON INTERNATIONAL,AGENCY STAFF,5100011182,04/08/2011," 3,300.00 "
MORSON INTERNATIONAL,AGENCY STAFF,5100011183,04/08/2011," 3,300.00 "
MORSON INTERNATIONAL,AGENCY STAFF,5100011348,17/08/2011," 3,300.00 "
ADVANTAGE TECHNICAL RESOURCING,AGENCY STAFF,5100011001,04/08/2011," 3,281.25 "
GARDINER & THEOBALD,MANAGEMENT & SUPPORT CONSULTANCY,5100011288,11/08/2011," 3,270.00 "
ASHURST,LEGAL FEES,5100011202,04/08/2011," 3,218.00 "
DMA MEDIA LIMITED,DIGITAL MEDIA SERVICES,5100010971,04/08/2011," 3,180.00 "
GEOTECHNICAL CONSULTING LLP,PROFESSIONAL ENGINEERING SERVICES,5100011334,17/08/2011," 3,121.11 "
TALENT STAFFING LIMITED,AGENCY STAFF,5100011064,04/08/2011," 3,035.00 "
TALENT STAFFING LIMITED,AGENCY STAFF,5100011163,11/08/2011," 3,035.00 "
TALENT STAFFING LIMITED,AGENCY STAFF,5100011257,11/08/2011," 3,035.00 "
RSK STATS ENVIRONMENT HEALTH & SAFE,HEALTH & SAFETY SYSTEMS & ASSURANCE,5100011098,04/08/2011," 3,029.40 "
ADVANTAGE PROFESSIONAL UK LIMITED,AGENCY STAFF,5100011058,27/07/2011," 3,017.70 "
ADVANTAGE PROFESSIONAL UK LIMITED,AGENCY STAFF,5100011069,27/07/2011," 3,017.70 "
ICE - INSTITUTION OF CIVIL ENGINEERS,MANAGEMENT & SUPPORT CONSULTANCY,5100010535,28/07/2011," 3,007.60 "
ICE - INSTITUTION OF CIVIL ENGINEERS,MANAGEMENT & SUPPORT CONSULTANCY,5100010931,04/08/2011," 3,000.00 "
ICE - INSTITUTION OF CIVIL ENGINEERS,MANAGEMENT & SUPPORT CONSULTANCY,5100011076,28/07/2011," 3,000.00 "
GOODMAN MASSON RECRUITMENT SERVICES,AGENCY STAFF,5100010884,04/08/2011," 2,995.00 "
GOODMAN MASSON RECRUITMENT SERVICES,AGENCY STAFF,5100011184,04/08/2011," 2,995.00 "
GOODMAN MASSON RECRUITMENT SERVICES,AGENCY STAFF,5100011185,04/08/2011," 2,995.00 "
GOODMAN MASSON RECRUITMENT SERVICES,AGENCY STAFF,5100011375,11/08/2011," 2,995.00 "
HAYS INFORMATION TECHNOLOGY,AGENCY STAFF,5100010826,04/08/2011," 2,964.00 "
ENVIRONMENT AGENCY,CONSENTS & ENVIRONMENT,5100010964,28/07/2011," 2,961.18 "
MANDATE HOGARTH & PENROSE,MANAGEMENT & SUPPORT CONSULTANCY,5100011577,17/08/2011," 2,950.00 "
MICHAEL CROSSLEY CONSULT LIMITED,INDIRECT STATION COSTS,5100011554,17/08/2011," 2,847.50 "
GEOTECHNICAL CONSULTING LLP,PROFESSIONAL ENGINEERING SERVICES,5100011326,17/08/2011," 2,833.79 "
ADVANTAGE PROFESSIONAL UK LIMITED,AGENCY STAFF,5100011063,27/07/2011," 2,816.52 "
JOC SAFETY AND RELIABILITY SERVICES,HEALTH & SAFETY SYSTEMS & ASSURANCE,5100010750,28/07/2011," 2,800.00 "
TALENT STAFFING LIMITED,AGENCY STAFF,5100010859,04/08/2011," 2,785.00 "
TALENT STAFFING LIMITED,AGENCY STAFF,5100011062,11/08/2011," 2,785.00 "
HOBS REPROGRAPHICS PLC,REPROGRAPHICS,5100011444,11/08/2011," 2,777.50 "
EVERSHEDS LLP,LEGAL FEES,5100011243,04/08/2011," 2,773.00 "
ADECCO UK LTD,RECRUITMENT AGENCY FEES,5100011511,17/08/2011," 2,750.00 "
ADECCO UK LTD,RECRUITMENT AGENCY FEES,5100011512,17/08/2011," 2,750.00 "
TMP (UK) LIMITED,RECRUITMENT ADVERTISING,5100011300,11/08/2011," 2,742.09 "
EVERSHEDS LLP,LEGAL FEES,5100011247,04/08/2011," 2,722.50 "
EUROPEAN TUNNELLING SERVICES LIMITE,PROFESSIONAL ENGINEERING SERVICES,5100011520,11/08/2011," 2,700.00 "
FUJITSU SERVICES LIMITED,IT SERVICES,5100010982,04/08/2011," 2,679.50 "
MORSON INTERNATIONAL,AGENCY STAFF,5100009508,11/08/2011," 2,640.00 "
MORSON INTERNATIONAL,AGENCY STAFF,5100010882,04/08/2011," 2,640.00 "
FUGRO ENGINEERING SERVICES LIMITED,DIRECT CONSTRUCTION COSTS,5100010975,28/07/2011," 2,605.00 "
WELLBEING4BUSINESS,HEALTH & SAFETY GENERAL,5100011526,17/08/2011," 2,540.40 "
GEOTECHNICAL CONSULTING LLP,PROFESSIONAL ENGINEERING SERVICES,5100011328,17/08/2011," 2,484.65 "
ICE - INSTITUTION OF CIVIL ENGINEERS,MANAGEMENT & SUPPORT CONSULTANCY,5100010930,04/08/2011," 2,475.24 "
NETWORK RAIL INFRASTRUCTURE LIMITED,DIRECT CONSTRUCTION COSTS,5100011175,04/08/2011," 2,464.77 "
FUJITSU SERVICES LIMITED,IT SERVICES,5100010888,04/08/2011," 2,439.75 "
TALENT STAFFING LIMITED,AGENCY STAFF,5100011251,11/08/2011," 2,435.00 "
TALENT STAFFING LIMITED,AGENCY STAFF,5100011252,11/08/2011," 2,435.00 "
TALENT STAFFING LIMITED,AGENCY STAFF,5100011253,17/08/2011," 2,435.00 "
GILLIAN FRENCH ASSOCIATES LIMITED,PROPERTY MANAGEMENT FEES,5100011096,04/08/2011," 2,400.00 "
EVERSHEDS LLP,LEGAL FEES,5100011244,04/08/2011," 2,389.50 "
MWB BUSINESS EXCHANGE UK LIMITED,EXTERNAL MEETING ROOM HIRE & EXPENSES,5100011160,04/08/2011," 2,362.50 "
URBAN WIMAX LIMITED,"TELEPHONE LINE RENT, CALLS & EQUIPMENT",5100010557,04/08/2011," 2,351.00 "
GOODMAN MASSON RECRUITMENT SERVICES,AGENCY STAFF,5100010885,04/08/2011," 2,325.60 "
GOODMAN MASSON RECRUITMENT SERVICES,AGENCY STAFF,5100011186,04/08/2011," 2,325.60 "
GOODMAN MASSON RECRUITMENT SERVICES,AGENCY STAFF,5100011187,04/08/2011," 2,325.60 "
GOODMAN MASSON RECRUITMENT SERVICES,AGENCY STAFF,5100011376,11/08/2011," 2,325.60 "
OVE ARUP & PARTNERS LIMITED,MANAGEMENT & SUPPORT CONSULTANCY,5100011363,17/08/2011," 2,231.20 "
THE STATIONERY OFFICE LIMITED,LAND & PROPERTY DISTRIBUTION,5100011354,17/08/2011," 2,212.00 "
HOBS REPROGRAPHICS PLC,REPROGRAPHICS,5100011443,11/08/2011," 2,193.19 "
FUJITSU SERVICES LIMITED,IT SERVICES,5100011109,11/08/2011," 2,112.00 "
ADVANTAGE PROFESSIONAL UK LIMITED,AGENCY STAFF,5100011383,11/08/2011," 2,101.78 "
RSK STATS ENVIRONMENT HEALTH & SAFE,HEALTH & SAFETY SYSTEMS & ASSURANCE,5100011000,04/08/2011," 2,100.00 "
FUJITSU SERVICES LIMITED,IT SERVICES,5100011116,11/08/2011," 2,090.04 "
GOODMAN MASSON RECRUITMENT SERVICES,AGENCY STAFF,5100011047,27/07/2011," 2,061.00 "
IAN ALLAN PUBLISHING LTD,REPROGRAPHICS,5100011081,04/08/2011," 2,050.00 "
STERIA RECRUITMENT,AGENCY STAFF,5100010863,04/08/2011," 2,033.00 "
STERIA RECRUITMENT,AGENCY STAFF,5100011016,04/08/2011," 2,033.00 "
STERIA RECRUITMENT,AGENCY STAFF,5100011087,04/08/2011," 2,033.00 "
STERIA RECRUITMENT,AGENCY STAFF,5100011482,17/08/2011," 2,033.00 "
BSI,ASSURANCE & STANDARDS,5100010005,02/08/2011," 2,016.25 "
BSI,ASSURANCE & STANDARDS,5100011218,04/08/2011," 2,016.25 "
ADVANTAGE PROFESSIONAL UK LIMITED,AGENCY STAFF,5100011070,27/07/2011," 1,994.25 "
EVERSHEDS LLP,LEGAL FEES,5100011237,04/08/2011," 1,983.20 "
BENTLEY SYSTEMS (UK) LIMITED,MANAGEMENT & SUPPORT CONSULTANCY,5100011422,11/08/2011," 1,908.00 "
OPENREACH BT,DIRECT CONSTRUCTION COSTS,5100011074,04/08/2011," 1,852.43 "
FUJITSU SERVICES LIMITED,IT SERVICES,5100011107,11/08/2011," 1,844.50 "
DRIVERS JONAS DELOITTE,DIRECT CONSTRUCTION COSTS,5100011151,04/08/2011," 1,827.50 "
MUSEUM OF LONDON ARCHAEOLOGY SERVIC,DIRECT CONSTRUCTION COSTS,5100011126,04/08/2011," 1,815.00 "
EUROPEAN TUNNELLING SERVICES LIMITE,PROFESSIONAL ENGINEERING SERVICES,5100011518,11/08/2011," 1,800.00 "
RUPERT TAYLOR LIMITED,MANAGEMENT & SUPPORT CONSULTANCY,5100010707,28/07/2011," 1,711.20 "
ASHURST,LEGAL FEES,5100011195,04/08/2011," 1,657.50 "
CRIPPS HARRIES HALL LLP,LEGAL FEES,5100011279,04/08/2011," 1,610.00 "
ADVANTAGE PROFESSIONAL UK LIMITED,AGENCY STAFF,5100011373,11/08/2011," 1,596.50 "
HAYS SPECIALIST RECRUITMENT LIMITED,AGENCY STAFF,5100010825,04/08/2011," 1,520.00 "
HAYS SPECIALIST RECRUITMENT LIMITED,AGENCY STAFF,5100011122,11/08/2011," 1,520.00 "
HAYS SPECIALIST RECRUITMENT LIMITED,AGENCY STAFF,5100011436,17/08/2011," 1,520.00 "
HAYS INFORMATION TECHNOLOGY,AGENCY STAFF,5100011508,17/08/2011," 1,482.00 "
ENGAGE GROUP LIMITED,REPROGRAPHICS,5100011346,11/08/2011," 1,475.00 "
KANTAR MEDIA INTELLIGENCE LIMITED,PROFESSIONAL SUBSCRIPTIONS,5100011083,04/08/2011," 1,435.30 "
J B RINEY & COMPANY LIMITED,DIRECT CONSTRUCTION COSTS,5100010845,04/08/2011," 1,432.64 "
RUPERT TAYLOR LIMITED,MANAGEMENT & SUPPORT CONSULTANCY,5100010834,17/08/2011," 1,419.15 "
JOC SAFETY AND RELIABILITY SERVICES,HEALTH & SAFETY SYSTEMS & ASSURANCE,5100011378,11/08/2011," 1,400.00 "
CRIPPS HARRIES HALL LLP,LEGAL FEES,5100011271,04/08/2011," 1,400.00 "
APCO WORLDWIDE LIMITED,DIGITAL MEDIA SERVICES,5100010961,29/07/2011," 1,378.30 "
RACKSPACE LIMITED,IT CONSULTANCY,5100010705,04/08/2011," 1,334.00 "
ADVANTAGE PROFESSIONAL UK LIMITED,AGENCY STAFF,5100011473,11/08/2011," 1,313.25 "
FUJITSU SERVICES LIMITED,IT SERVICES,5100011099,11/08/2011," 1,297.18 "
HOBS REPROGRAPHICS PLC,REPROGRAPHICS,5100011135,04/08/2011," 1,269.00 "
RUPERT TAYLOR LIMITED,MANAGEMENT & SUPPORT CONSULTANCY,5100011359,17/08/2011," 1,254.00 "
ASHURST,LEGAL FEES,5100011197,04/08/2011," 1,224.00 "
ADVANTAGE PROFESSIONAL UK LIMITED,AGENCY STAFF,5100008882,17/08/2011," 1,214.00 "
TIKIT LIMITED,IT SERVICES,5100010836,04/08/2011," 1,210.50 "
DRIVERS JONAS DELOITTE,DIRECT CONSTRUCTION COSTS,5100011149,04/08/2011," 1,210.00 "
EMC COMPUTER SYSTEMS (UK) LTD.,IT CONSULTANCY,5100010878,11/08/2011," 1,206.00 "
DG3 EUROPE LIMITED,SIGNAGE & ARTWORK,5100010913,28/07/2011," 1,175.00 "
HOBS REPROGRAPHICS PLC,REPROGRAPHICS,5100011140,04/08/2011," 1,157.16 "
BIRCHAM DYSON BELL LLP,LEGAL FEES,5100010812,11/08/2011," 1,140.50 "
TALENT STAFFING LIMITED,AGENCY STAFF,5100010861,04/08/2011," 1,060.35 "
TALENT STAFFING LIMITED,AGENCY STAFF,5100011066,04/08/2011," 1,060.35 "
TALENT STAFFING LIMITED,AGENCY STAFF,5100011249,11/08/2011," 1,060.35 "
GVA GRIMLEY LIMITED,OSD TOWN PLANNING COSTS,5100010907,28/07/2011," 1,057.50 "
ADVANTAGE PROFESSIONAL UK LIMITED,AGENCY STAFF,5100009911,17/08/2011," 1,050.89 "
EWA LIMITED,STATUTORY ADVERTISING & NOTIFICATIONS,5100011353,17/08/2011," 1,047.16 "
FUJITSU SERVICES LIMITED,IT SERVICES,5100010978,04/08/2011," 1,000.00 "
EVERSHEDS LLP,LEGAL FEES,5100011225,04/08/2011," 1,000.00 "
ADVANTAGE PROFESSIONAL UK LIMITED,AGENCY STAFF,5100011057,27/07/2011, 985.26 
MICHAEL PAGE UK LIMITED,AGENCY STAFF,5100011315,04/08/2011, 980.10 
HAYS SPECIALIST RECRUITMENT LIMITED,AGENCY STAFF,5100010970,04/08/2011, 950.00 
MICHAEL PAGE UK LIMITED,AGENCY STAFF,5100011259,11/08/2011, 933.75 
NETWORK RAIL INFRASTRUCTURE LIMITED,DIRECT CONSTRUCTION COSTS,5100011176,04/08/2011, 923.29 
ASHURST,LEGAL FEES,5100011199,04/08/2011, 918.00 
MICHAEL PAGE UK LIMITED,AGENCY STAFF,5100010678,04/08/2011, 914.76 
EVERSHEDS LLP,LEGAL FEES,5100011229,04/08/2011, 904.00 
DMA MEDIA LIMITED,DIGITAL MEDIA SERVICES,5100010962,04/08/2011, 900.00 
MICHAEL PAGE UK LIMITED,AGENCY STAFF,5100011314,04/08/2011, 892.98 
HOBS REPROGRAPHICS PLC,REPROGRAPHICS,5100011501,11/08/2011, 885.53 
MICHAEL PAGE UK LIMITED,AGENCY STAFF,5100011262,11/08/2011, 871.50 
OVE ARUP & PARTNERS LIMITED,CONSENTS & ENVIRONMENT,5100011079,11/08/2011, 867.58 
MICHAEL PAGE UK LIMITED,AGENCY STAFF,5100011287,11/08/2011, 850.75 
LB TOWER HAMLETS,CONSENTS & ENVIRONMENT,5100011576,15/08/2011, 850.00 
O2 UK LTD  A/C 04077861,"MOBILE PHONE LINE RENT, CALLS & EQUIPMENT",5100011014,04/08/2011, 850.00 
MICHAEL PAGE UK LIMITED,AGENCY STAFF,5100011285,11/08/2011, 840.38 
DRIVERS JONAS DELOITTE,DIRECT CONSTRUCTION COSTS,5100011150,04/08/2011, 825.00 
EVERSHEDS LLP,LEGAL FEES,5100011235,04/08/2011, 822.00 
EVERSHEDS LLP,LEGAL FEES,5100011228,04/08/2011, 815.00 
CRIPPS HARRIES HALL LLP,LEGAL FEES,5100011280,04/08/2011, 805.00 
EVERSHEDS LLP ,PROPERTY AND COMPENSATION PAYMENTS,100007131,12/08/2011, 800.00 
MICHAEL PAGE UK LIMITED,AGENCY STAFF,5100010731,04/08/2011, 794.97 
ASHURST,LEGAL FEES,5100011208,04/08/2011, 763.00 
BUCHANAN COMPUTING LIMITED,IT SERVICES,5100010954,04/08/2011, 762.00 
MICHAEL PAGE UK LIMITED,AGENCY STAFF,5100011286,11/08/2011, 757.38 
TMP (UK) LIMITED,RECRUITMENT ADVERTISING,5100011157,04/08/2011, 737.40 
ABA CONSULTANTS LIMITED,STAFF TRAINING,5100011301,04/08/2011, 713.20 
ABA CONSULTANTS LIMITED,STAFF TRAINING,5100011302,04/08/2011, 713.20 
MICHAEL PAGE UK LIMITED,AGENCY STAFF,5100011124,04/08/2011, 711.03 
MICHAEL PAGE UK LIMITED,AGENCY STAFF,5100011564,15/08/2011, 711.03 
O2 UK LTD  A/C 04077861,"MOBILE PHONE LINE RENT, CALLS & EQUIPMENT",5100010953,04/08/2011, 700.00 
RACKSPACE LIMITED,IT CONSULTANCY,5100010706,04/08/2011, 695.00 
EVERSHEDS LLP,LEGAL FEES,5100011238,04/08/2011, 690.00 
THE BRITISH BOARD OF FILM CLASSIFIC,MANAGEMENT & SUPPORT CONSULTANCY,5100010718,11/08/2011, 671.10 
HOBS REPROGRAPHICS PLC,REPROGRAPHICS,5100011415,11/08/2011, 667.68 
ASHURST,LEGAL FEES,5100011209,04/08/2011, 662.50 
ADECCO UK LTD,AGENCY STAFF,5100011344,11/08/2011, 660.41 
THE FORKLIFT TRAINING COMPANY,STAFF TRAINING,5100011053,27/07/2011, 660.00 
ADECCO UK LTD,AGENCY STAFF,5100011343,11/08/2011, 656.41 
REED PERSONNEL SERVICES PLC,AGENCY STAFF,5100011484,17/08/2011, 653.60 
ADVANTAGE PROFESSIONAL UK LIMITED,AGENCY STAFF,5100011054,27/07/2011, 651.04 
ADECCO UK LTD,AGENCY STAFF,5100010906,04/08/2011, 648.41 
GEOTECHNICAL CONSULTING LLP,PROFESSIONAL ENGINEERING SERVICES,5100011330,17/08/2011, 646.31 
HOBS REPROGRAPHICS PLC,REPROGRAPHICS,5100011411,11/08/2011, 634.50 
REED PERSONNEL SERVICES PLC,AGENCY STAFF,5100011483,17/08/2011, 632.96 
ADECCO UK LTD,AGENCY STAFF,5100011502,17/08/2011, 632.40 
HOBS REPROGRAPHICS PLC,IT SERVICES,5100011012,04/08/2011, 628.70 
ADECCO UK LTD,AGENCY STAFF,5100011503,17/08/2011, 616.39 
ADVANTAGE PROFESSIONAL UK LIMITED,AGENCY STAFF,5100011440,17/08/2011, 610.50 
HOBS REPROGRAPHICS PLC,REPROGRAPHICS,5100011413,11/08/2011, 596.40 
REED PERSONNEL SERVICES PLC,AGENCY STAFF,5100011044,04/08/2011, 595.12 
REED PERSONNEL SERVICES PLC,AGENCY STAFF,5100010927,04/08/2011, 591.68 
ADECCO UK LTD,AGENCY STAFF,5100010905,04/08/2011, 560.35 
MICHAEL PAGE UK LIMITED,AGENCY STAFF,5100010926,04/08/2011, 525.00 
MICHAEL PAGE UK LIMITED,AGENCY STAFF,5100011045,04/08/2011, 525.00 
MICHAEL PAGE UK LIMITED,AGENCY STAFF,5100011485,17/08/2011, 525.00 
MICHAEL PAGE UK LIMITED,AGENCY STAFF,5100011486,17/08/2011, 525.00 
HOBS REPROGRAPHICS PLC,REPROGRAPHICS,5100011146,04/08/2011, 518.76 
DUNSTAN THOMAS HOLDINGS LIMITED,IT SERVICES,5100010688,04/08/2011, 501.00 
EVERSHEDS LLP,LEGAL FEES,5100011221,04/08/2011, 500.00 
URBAN WIMAX LIMITED,"TELEPHONE LINE RENT, CALLS & EQUIPMENT",5100010241,04/08/2011, 500.00 
ADVANTAGE PROFESSIONAL UK LIMITED,AGENCY STAFF,5100011055,27/07/2011,-651.04 
ADVANTAGE PROFESSIONAL UK LIMITED,AGENCY STAFF,5100011396,11/08/2011,-670.60 
MICHAEL PAGE UK LIMITED,AGENCY STAFF,5100011565,15/08/2011,-711.03 
MICHAEL PAGE UK LIMITED,AGENCY STAFF,5100011317,04/08/2011,-794.97 
MICHAEL PAGE UK LIMITED,AGENCY STAFF,5100011313,04/08/2011,-892.98 
MICHAEL PAGE UK LIMITED,AGENCY STAFF,5100011312,04/08/2011,-914.76 
MICHAEL PAGE UK LIMITED,AGENCY STAFF,5100011316,04/08/2011,-980.10 
ADVANTAGE PROFESSIONAL UK LIMITED,AGENCY STAFF,5100011056,27/07/2011,-985.26 
EUROPEAN TUNNELLING SERVICES LIMITE,PROFESSIONAL ENGINEERING SERVICES,5100011519,11/08/2011,"-1,800.00 "
ADVANTAGE PROFESSIONAL UK LIMITED,AGENCY STAFF,5100011071,27/07/2011,"-1,994.25 "
BSI,ASSURANCE & STANDARDS,5100011217,02/08/2011,"-2,016.25 "
GOODMAN MASSON RECRUITMENT SERVICES,AGENCY STAFF,5100011046,27/07/2011,"-2,061.00 "
ADVANTAGE PROFESSIONAL UK LIMITED,AGENCY STAFF,5100010640,04/08/2011,"-2,414.16 "
EUROPEAN TUNNELLING SERVICES LIMITE,PROFESSIONAL ENGINEERING SERVICES,5100011521,11/08/2011,"-2,700.00 "
ADVANTAGE PROFESSIONAL UK LIMITED,AGENCY STAFF,5100011061,27/07/2011,"-2,816.52 "
ADVANTAGE PROFESSIONAL UK LIMITED,AGENCY STAFF,5100011059,27/07/2011,"-3,017.70 "
ADVANTAGE PROFESSIONAL UK LIMITED,AGENCY STAFF,5100011067,27/07/2011,"-3,017.70 "
THE NICHOLS GROUP LIMITED,AGENCY STAFF,5100011283,11/08/2011,"-3,040.00 "
ASPERITY EMPLOYEE BENEFITS LIMITED,EMPLOYEE CHILDCARE VOUCHER SCHEME,5100011039,27/07/2011,"-4,446.00 "
ADVANTAGE TECHNICAL RESOURCING,AGENCY STAFF,5100011049,27/07/2011,"-5,906.25 "
GOODMAN MASSON RECRUITMENT SERVICES,AGENCY STAFF,5100011043,27/07/2011,"-8,386.00 "
BRITISH TELECOMMUNICATIONS PLC STOC,DIRECT CONSTRUCTION COSTS,5100011494,10/08/2011,"-12,410.48 "
ARUP ASSOCIATES,AGENCY STAFF,5100011040,27/07/2011,"-13,268.00 "
BRITISH TELECOMMUNICATIONS PLC STOC,TELECOMMUNICATIONS,100007127,10/08/2011,"-14,582.31 "
CARILLION CONSTRUCTION ,DIRECT CONSTRUCTION COSTS,5100011367,11/08/2011,"-15,855.00 "
J MURPHY & SONS LIMITED,DIRECT CONSTRUCTION COSTS,5100011295,10/08/2011,"-30,290.68 "
ROWSELL WRIGHT LIMITED,PROCUREMENT ADVICE & GUIDANCE,5100011667,17/08/2011,"-31,431.00 "
MCGEE GROUP LIMITED,DIRECT CONSTRUCTION COSTS,5100011496,10/08/2011,"-531,721.09 "
BENTLEY SYSTEMS (UK) LIMITED,IT SERVICES,1500000057,29/07/2011,"-774,959.56 "
(Negative figures represent refunds received or invoices credited),,TOTAL,," 71,898,511.14 "

